{"text_format":"1","workbook":"xlsx","n_sheets":2,"sheets":["Salim","Data"],"not_rendered":{"charts":0,"images":0,"macros":1,"external_links":0,"defined_names":0,"comments":0,"pivot_tables":0},"unopened":[],"bounds":{"document_bytes":16777216,"sheet_cells":100000,"rows_first":2000,"rows_last":500,"rows_between":2000,"halvings":0,"cell_chars":16384,"cell_head_chars":4096},"cells_cut":0,"cells_raw":0,"read":"whole","date_system":"1900"}

{"sheet":"Salim","index":0,"n_rows":14,"n_cols":29,"rows_kept":14,"cut":false,"hidden":false,"merged":[]}
[null,null,null,null,"East","West","North","South",null,null,null,null,null,null,null,null,null,null,null,null,null,null,null,null,null,"E","W","N","s"]
[null,null,"ابو عبد الطيب ضمؤير الحق فارس",null,"ا","د","ع","و",null,null,null,null,null,null,null,null,null,null,null,null,null,null,null,null,null,193,207,214,192]
[null,null,null,null,"ب","ر","ط","ل",null,null,null,null,null,null,null,null,null,null,null,null,null,null,null,null,null,194,208,216,196]
[null,null,null,null,"ب","ر","ض","ي",null,null,null,null,null,null,null,null,null,null,null,null,null,null,null,null,null,195,209,217,198]
[null,null,null,null,"ا","س","ق","م",null,null,null,null,null,null,null,null,null,null,null,null,null,null,null,null,null,197,210,218,223]
[null,null,null,null,"ب",null,"ف","ؤ",null,null,null,null,null,null,null,null,null,null,null,null,null,null,null,null,null,199,211,219,225]
[null,null,null,null,"ا",null,null,"ي",null,null,null,null,null,null,null,null,null,null,null,null,null,null,null,null,null,200,212,221,227]
[null,null,null,null,"ح",null,null,"ل",null,null,null,null,null,null,null,null,null,null,null,null,null,null,null,null,null,201,213,222,228]
[null,null,null,null,"ا",null,null,null,null,null,null,null,null,null,null,null,null,null,null,null,null,null,null,null,null,202,null,null,229]
[null,null,null,null,null,null,null,null,null,null,null,null,null,null,null,null,null,null,null,null,null,null,null,null,null,203,null,null,230]
[null,null,null,null,null,null,null,null,null,null,null,null,null,null,null,null,null,null,null,null,null,null,null,null,null,204,null,null,237]
[null,null,null,null,null,null,null,null,null,null,null,null,null,null,null,null,null,null,null,null,null,null,null,null,null,205]
[null,null,null,null,null,null,null,null,null,null,null,null,null,null,null,null,null,null,null,null,null,null,null,null,null,206]
[null,null,null,null,null,null,null,null,null,null,null,null,null,null,null,null,null,null,null,null,null,null,null,null,null,236]

{"sheet":"Data","index":1,"n_rows":38,"n_cols":29,"rows_kept":38,"cut":false,"hidden":false,"merged":[]}
[null,null,null,null,null,null,null,null,null,null,null,null,null,null,null,null,null,null,null,null,null,null,null,null,null,"E","W","N","s"]
["ہ",null,{"$f":"CODE(A2)","v":192},44,"ہ","ا","خ","ص","ق","ى",null,null,null,null,null,null,null,null,null,null,null,null,null,null,null,193,207,214,192]
["ء",null,{"$f":"CODE(A3)","v":193},6,"ء","ب","د","ض","ك","ي",null,null,null,null,null,null,null,null,null,null,null,null,null,null,null,194,208,216,196]
["آ",null,194,null,"آ","ة","ذ","ط","ل",null,null,null,null,null,null,null,null,null,null,null,null,null,null,null,null,195,209,217,198]
["أ",null,195,null,"أ","ت","ر","ظ","م",null,null,null,null,null,null,null,null,null,null,null,null,null,null,null,null,197,210,218,223]
["ؤ",null,196,null,"ؤ","ث","ز","ع","ن",null,null,null,null,null,null,null,null,null,null,null,null,null,null,null,null,199,211,219,225]
["إ",null,197,null,"إ","ج","س","غ","ه",null,null,null,null,null,null,null,null,null,null,null,null,null,null,null,null,200,212,221,227]
["ئ",null,198,null,"ئ","ح","ش","ف","و",null,null,null,null,null,null,null,null,null,null,null,null,null,null,null,null,201,213,222,228]
["ا",null,199,null,null,null,null,null,null,null,null,null,null,null,null,null,null,null,null,null,null,null,null,null,null,202,null,null,229]
["ب",null,200,null,null,null,null,null,null,null,null,null,null,null,null,null,null,null,null,null,null,null,null,null,null,203,null,null,230]
["ة",null,201,null,null,null,null,null,null,null,null,null,null,null,null,null,null,null,null,null,null,null,null,null,null,204,null,null,237]
["ت",null,202,null,null,null,null,null,null,null,null,null,null,null,null,null,null,null,null,null,null,null,null,null,null,205]
["ث",null,203,null,null,null,null,null,null,null,null,null,null,null,null,null,null,null,null,null,null,null,null,null,null,206]
["ج",null,204,null,null,null,null,null,null,null,null,null,null,null,null,null,null,null,null,null,null,null,null,null,null,236]
["ح",null,205]
["خ",null,206]
["د",null,207,35]
["ذ",null,208]
["ر",null,209]
["ز",null,210]
["س",null,211]
["ش",null,212]
["ص",null,213]
["ض",null,214,40]
["ط",null,216]
["ظ",null,217]
["ع",null,218]
["غ",null,219]
["ف",null,221]
["ق",null,222]
["ك",null,223,44]
["ل",null,225]
["م",null,227]
["ن",null,228]
["ه",null,229]
["و",null,230]
["ى",null,236]
["ي",null,237]